[Event "Early-Titled-Tuesday-Blitz-April-02-2024"]
[Site "Chess.com"]
[Date "2024.04.02"]
[Round "2"]
[White "JoshuaGK27"]
[Black "GolfBeforeChess"]
[Result "1-0"]
[WhiteElo "2531"]
[BlackElo "2294"]
[TimeControl "180+1"]
[EndTime "8:17:06 PDT"]
[Termination "JoshuaGK27 won by resignation"]

1. e4 {[%clk 0:02:59.8]} 1... Nf6 {[%clk 0:02:59.9]} 2. e5 {[%clk 0:02:59]} 2...
Nd5 {[%clk 0:03:00]} 3. d4 {[%clk 0:02:59.7]} 3... d6 {[%clk 0:03:00]} 4. Nf3
{[%clk 0:03:00.4]} 4... dxe5 {[%clk 0:03:00]} 5. Nxe5 {[%clk 0:03:00.3]} 5... c6
{[%clk 0:03:00.3]} 6. Be2 {[%clk 0:02:59.1]} 6... Bf5 {[%clk 0:03:00.3]} 7. O-O
{[%clk 0:02:58.3]} 7... e6 {[%clk 0:03:00.9]} 8. Nd2 {[%clk 0:02:55.2]} 8... Be7
{[%clk 0:03:01.3]} 9. c3 {[%clk 0:02:51.5]} 9... Nd7 {[%clk 0:03:01.2]} 10. Nef3
{[%clk 0:02:51]} 10... O-O {[%clk 0:03:00.7]} 11. Re1 {[%clk 0:02:51.5]} 11...
h6 {[%clk 0:02:59.9]} 12. Nf1 {[%clk 0:02:51.6]} 12... Bh7 {[%clk 0:02:55.8]}
13. Ng3 {[%clk 0:02:49.1]} 13... c5 {[%clk 0:02:55.9]} 14. Bd3 {[%clk
0:02:39.3]} 14... Bxd3 {[%clk 0:02:53.4]} 15. Qxd3 {[%clk 0:02:40.2]} 15... cxd4
{[%clk 0:02:52.8]} 16. Nxd4 {[%clk 0:02:38]} 16... Nc5 {[%clk 0:02:50.6]} 17.
Qe2 {[%clk 0:02:38.2]} 17... Bf6 {[%clk 0:02:35.9]} 18. Nh5 {[%clk 0:02:35]}
18... Bxd4 {[%clk 0:02:32.7]} 19. cxd4 {[%clk 0:02:35.9]} 19... Nd7 {[%clk
0:02:30.6]} 20. Qg4 {[%clk 0:02:30.3]} 20... g6 {[%clk 0:02:12.5]} 21. Bxh6
{[%clk 0:02:29.2]} 21... N7f6 {[%clk 0:02:04.3]} 22. Nxf6+ {[%clk 0:02:10.9]}
22... Nxf6 {[%clk 0:02:03.7]} 23. Qh4 {[%clk 0:02:06.4]} 23... Nh7 {[%clk
0:01:45.3]} 24. Qe4 {[%clk 0:01:42.7]} 24... Re8 {[%clk 0:01:40.1]} 25. Rad1
{[%clk 0:01:42.5]} 25... Qd7 {[%clk 0:01:33.6]} 26. h4 {[%clk 0:01:37.6]} 26...
Rad8 {[%clk 0:01:26.2]} 27. h5 {[%clk 0:01:35.9]} 27... f5 {[%clk 0:00:58.6]}
28. Qh4 {[%clk 0:01:13.5]} 28... gxh5 {[%clk 0:00:39.8]} 29. Re3 {[%clk
0:01:05.7]} 29... Re7 {[%clk 0:00:23.7]} 30. Rg3+ {[%clk 0:01:01.1]} 30... Kh8
{[%clk 0:00:23.8]} 31. Qxh5 {[%clk 0:00:53.9]} 31... Rg8 {[%clk 0:00:20.8]} 32.
Rxg8+ {[%clk 0:00:46.2]} 32... Kxg8 {[%clk 0:00:20.1]} 33. Rd3 {[%clk
0:00:46.7]} 33... Qe8 {[%clk 0:00:17.5]} 34. Rg3+ {[%clk 0:00:44.1]} 34... Kh8
{[%clk 0:00:17]} 35. Qh4 {[%clk 0:00:44.7]} 35... Qf7 {[%clk 0:00:12.6]} 36. Bf4
{[%clk 0:00:43.1]} 1-0

[Event "Early-Titled-Tuesday-Blitz-April-02-2024"]
[Site "Chess.com"]
[Date "2024.04.02"]
[Round "2"]
[White "colegiodemadrid"]
[Black "RichardShtivelband"]
[Result "1-0"]
[WhiteElo "2512"]
[BlackElo "2256"]
[TimeControl "180+1"]
[EndTime "8:17:08 PDT"]
[Termination "colegiodemadrid won on time"]

1. e4 {[%clk 0:03:00.9]} 1... e5 {[%clk 0:02:55.7]} 2. Nf3 {[%clk 0:03:01]} 2...
Nc6 {[%clk 0:02:55.6]} 3. Bc4 {[%clk 0:03:01.6]} 3... Bc5 {[%clk 0:02:55.2]} 4.
d4 {[%clk 0:03:00.9]} 4... Bxd4 {[%clk 0:02:54.6]} 5. Nxd4 {[%clk 0:03:00.3]}
5... Nxd4 {[%clk 0:02:54.3]} 6. Be3 {[%clk 0:03:00.9]} 6... Ne6 {[%clk
0:02:49.9]} 7. Qg4 {[%clk 0:03:01.4]} 7... Nf6 {[%clk 0:02:43.1]} 8. Qf3 {[%clk
0:02:59]} 8... c6 {[%clk 0:02:37.2]} 9. Bxe6 {[%clk 0:02:57.8]} 9... dxe6 {[%clk
0:02:34.5]} 10. Nc3 {[%clk 0:02:56.9]} 10... O-O {[%clk 0:02:31]} 11. g4 {[%clk
0:02:57.1]} 11... b5 {[%clk 0:02:23.2]} 12. g5 {[%clk 0:02:56.6]} 12... Nd7
{[%clk 0:02:23]} 13. h4 {[%clk 0:02:56.4]} 13... b4 {[%clk 0:02:20.7]} 14. Na4
{[%clk 0:02:56]} 14... Ba6 {[%clk 0:02:16.8]} 15. O-O-O {[%clk 0:02:55.5]} 15...
Qc7 {[%clk 0:02:12.1]} 16. h5 {[%clk 0:02:51.3]} 16... c5 {[%clk 0:02:07.8]} 17.
g6 {[%clk 0:02:47.5]} 17... fxg6 {[%clk 0:02:06.6]} 18. Qg4 {[%clk 0:02:47.6]}
18... Rae8 {[%clk 0:01:59.5]} 19. hxg6 {[%clk 0:02:46.7]} 19... h6 {[%clk
0:01:59.3]} 20. Rh5 {[%clk 0:02:33.6]} 20... Nf6 {[%clk 0:01:53.6]} 21. Qh4
{[%clk 0:02:27.9]} 21... Nxh5 {[%clk 0:01:52.8]} 22. Qxh5 {[%clk 0:02:28.8]}
22... c4 {[%clk 0:01:37.8]} 23. Nc5 {[%clk 0:02:28.5]} 23... Bc8 {[%clk
0:01:34.4]} 24. Rh1 {[%clk 0:02:18.4]} 24... c3 {[%clk 0:01:32.3]} 25. b3 {[%clk
0:02:15.1]} 25... Rf6 {[%clk 0:01:04]} 26. Kb1 {[%clk 0:02:08.4]} 26... Ref8
{[%clk 0:00:55.4]} 27. a4 {[%clk 0:02:00.4]} 27... Qe7 {[%clk 0:00:39.4]} 28.
Ka2 {[%clk 0:01:51.3]} 28... Qe8 {[%clk 0:00:39.2]} 29. Rg1 {[%clk 0:01:51.5]}
29... Bd7 {[%clk 0:00:26.8]} 30. Qxe5 {[%clk 0:01:50.2]} 30... Bc6 {[%clk
0:00:24.7]} 31. f4 {[%clk 0:01:37]} 31... Rxg6 {[%clk 0:00:20]} 32. Rd1 {[%clk
0:01:36.2]} 32... Rg2 {[%clk 0:00:16]} 33. Kb1 {[%clk 0:01:36]} 33... Qg6 {[%clk
0:00:12.4]} 34. Qd4 {[%clk 0:01:34.6]} 34... Qg4 {[%clk 0:00:10.9]} 35. Rc1
{[%clk 0:01:32.1]} 35... Kh7 {[%clk 0:00:09.3]} 36. Qxb4 {[%clk 0:01:31.3]}
36... Qf3 {[%clk 0:00:07.4]} 37. Qxc3 {[%clk 0:01:30.4]} 37... Bxe4 {[%clk
0:00:07.2]} 38. Nxe6 {[%clk 0:01:25.3]} 38... Re8 {[%clk 0:00:04.5]} 39. Nd4
{[%clk 0:01:22.3]} 39... Qg4 {[%clk 0:00:03]} 40. Nb5 {[%clk 0:01:17.3]} 40...
Bg6 {[%clk 0:00:02.6]} 41. Bd4 {[%clk 0:01:15.4]} 41... Qe2 {[%clk 0:00:02.4]}
42. f5 {[%clk 0:01:11.7]} 42... Bxf5 {[%clk 0:00:01.5]} 43. Nd6 {[%clk
0:01:12.2]} 1-0

[Event "Early-Titled-Tuesday-Blitz-April-02-2024"]
[Site "Chess.com"]
[Date "2024.04.02"]
[Round "2"]
[White "Smiechu"]
[Black "lamomiajunior"]
[Result "1-0"]
[WhiteElo "2446"]
[BlackElo "2700"]
[TimeControl "180+1"]
[EndTime "8:17:09 PDT"]
[Termination "Smiechu won on time"]

1. e4 {[%clk 0:02:57.9]} 1... c5 {[%clk 0:02:59.5]} 2. Nf3 {[%clk 0:02:57.8]}
2... d6 {[%clk 0:03:00.1]} 3. d4 {[%clk 0:02:58.3]} 3... cxd4 {[%clk 0:03:01]}
4. Nxd4 {[%clk 0:02:58.5]} 4... Nf6 {[%clk 0:03:01.7]} 5. Nc3 {[%clk 0:02:58.6]}
5... a6 {[%clk 0:03:02.4]} 6. Be3 {[%clk 0:02:58.7]} 6... e6 {[%clk 0:03:01.4]}
7. Bd3 {[%clk 0:02:58.1]} 7... h5 {[%clk 0:02:58.4]} 8. h3 {[%clk 0:02:56.4]}
8... Be7 {[%clk 0:02:57.6]} 9. Qe2 {[%clk 0:02:55.9]} 9... Nc6 {[%clk
0:02:55.4]} 10. O-O-O {[%clk 0:02:55]} 10... Bd7 {[%clk 0:02:54]} 11. Kb1 {[%clk
0:02:52]} 11... Qc7 {[%clk 0:02:53.8]} 12. f4 {[%clk 0:02:44.7]} 12... b5 {[%clk
0:02:51.1]} 13. e5 {[%clk 0:02:28.9]} 13... dxe5 {[%clk 0:02:45.4]} 14. fxe5
{[%clk 0:02:23.4]} 14... Qxe5 {[%clk 0:02:41.1]} 15. Nf3 {[%clk 0:02:20.5]}
15... Qc7 {[%clk 0:02:39]} 16. Ne4 {[%clk 0:02:13.2]} 16... Nd5 {[%clk
0:02:28.6]} 17. Bc5 {[%clk 0:02:11]} 17... Nf4 {[%clk 0:02:05]} 18. Qd2 {[%clk
0:02:03.5]} 18... Nxd3 {[%clk 0:02:02.1]} 19. Qxd3 {[%clk 0:02:01.4]} 19...
O-O-O {[%clk 0:00:59.1]} 20. Bxe7 {[%clk 0:01:56]} 20... Nxe7 {[%clk 0:00:57.3]}
21. Nd6+ {[%clk 0:01:56]} 21... Kb8 {[%clk 0:00:57.1]} 22. Nxf7 {[%clk
0:01:55.1]} 22... Nd5 {[%clk 0:00:56.3]} 23. Nxh8 {[%clk 0:01:48.1]} 23... Rxh8
{[%clk 0:00:57.2]} 24. Rhe1 {[%clk 0:01:41.6]} 24... Rc8 {[%clk 0:00:56.9]} 25.
c3 {[%clk 0:01:31.9]} 25... Be8 {[%clk 0:00:53.2]} 26. Ne5 {[%clk 0:01:27.9]}
26... g5 {[%clk 0:00:48.9]} 27. Ka1 {[%clk 0:01:25.3]} 27... Qa5 {[%clk
0:00:44.6]} 28. Qd4 {[%clk 0:01:12.5]} 28... h4 {[%clk 0:00:37.9]} 29. Nd3
{[%clk 0:01:10.7]} 29... Rc4 {[%clk 0:00:08.8]} 30. Qe5+ {[%clk 0:01:07.6]}
30... Nc7 {[%clk 0:00:09.4]} 31. Nb4 {[%clk 0:01:02.6]} 31... Qb6 {[%clk
0:00:05.3]} 32. Rd8+ {[%clk 0:00:56]} 32... Ka7 {[%clk 0:00:05.9]} 33. Rd6
{[%clk 0:00:47.7]} 33... Qb7 {[%clk 0:00:04.4]} 34. Qe3+ {[%clk 0:00:46.2]}
34... Kb8 {[%clk 0:00:01.5]} 35. Rd8+ {[%clk 0:00:46.3]} 1-0

[Event "Early-Titled-Tuesday-Blitz-April-02-2024"]
[Site "Chess.com"]
[Date "2024.04.02"]
[Round "2"]
[White "ilya2700"]
[Black "m_ezat"]
[Result "0-1"]
[WhiteElo "2321"]
[BlackElo "2546"]
[TimeControl "180+1"]
[EndTime "8:17:09 PDT"]
[Termination "m_ezat won on time"]

1. e4 {[%clk 0:02:59.1]} 1... e5 {[%clk 0:02:59.5]} 2. Nf3 {[%clk 0:02:59]} 2...
Nc6 {[%clk 0:02:59.9]} 3. Bc4 {[%clk 0:02:58.7]} 3... Nf6 {[%clk 0:02:59.6]} 4.
d3 {[%clk 0:02:59]} 4... h6 {[%clk 0:02:59.4]} 5. Nc3 {[%clk 0:02:58.8]} 5...
Bb4 {[%clk 0:02:58.2]} 6. Bd2 {[%clk 0:02:57.2]} 6... d6 {[%clk 0:02:56.2]} 7.
h3 {[%clk 0:02:57.1]} 7... O-O {[%clk 0:02:56.1]} 8. g4 {[%clk 0:02:53]} 8...
Na5 {[%clk 0:02:41.5]} 9. g5 {[%clk 0:01:57.3]} 9... Nxc4 {[%clk 0:02:39.2]} 10.
gxf6 {[%clk 0:01:41.7]} 10... Nxd2 {[%clk 0:02:36.3]} 11. Nxd2 {[%clk
0:01:19.3]} 11... Bxc3 {[%clk 0:02:33.9]} 12. bxc3 {[%clk 0:01:20.2]} 12... Qxf6
{[%clk 0:02:33.2]} 13. Qh5 {[%clk 0:01:14.1]} 13... Qg6 {[%clk 0:02:24.1]} 14.
Qf3 {[%clk 0:01:11.6]} 14... f5 {[%clk 0:02:22]} 15. exf5 {[%clk 0:01:05.6]}
15... Rxf5 {[%clk 0:02:14]} 16. Qe4 {[%clk 0:01:01.5]} 16... c6 {[%clk
0:02:09.9]} 17. O-O-O {[%clk 0:00:59.7]} 17... d5 {[%clk 0:02:09.7]} 18. Qb4
{[%clk 0:00:57.4]} 18... Qf7 {[%clk 0:02:04]} 19. f3 {[%clk 0:00:41.5]} 19...
Be6 {[%clk 0:02:03.6]} 20. Rhg1 {[%clk 0:00:40.1]} 20... a5 {[%clk 0:02:02.1]}
21. Qb6 {[%clk 0:00:38]} 21... Ra6 {[%clk 0:01:50.9]} 22. Qd8+ {[%clk
0:00:36.2]} 22... Qf8 {[%clk 0:01:48.2]} 23. Qc7 {[%clk 0:00:35.7]} 23... Rf7
{[%clk 0:01:46.1]} 24. Qxe5 {[%clk 0:00:24.9]} 24... Qa3+ {[%clk 0:01:36.4]} 25.
Kb1 {[%clk 0:00:24.9]} 25... c5 {[%clk 0:01:36.4]} 26. Nb3 {[%clk 0:00:17]}
26... a4 {[%clk 0:01:33]} 27. Rg6 {[%clk 0:00:09.3]} 27... axb3 {[%clk
0:01:32.2]} 28. cxb3 {[%clk 0:00:04]} 28... Qxa2+ {[%clk 0:01:31.7]} 29. Kc1
{[%clk 0:00:04.9]} 29... Qa1+ {[%clk 0:01:26.5]} 30. Kd2 {[%clk 0:00:05.1]}
30... Qb2+ {[%clk 0:01:26.7]} 31. Ke3 {[%clk 0:00:04.5]} 31... d4+ {[%clk
0:01:03.7]} 32. cxd4 {[%clk 0:00:03.2]} 32... cxd4+ {[%clk 0:01:03.7]} 33. Ke4
{[%clk 0:00:03.3]} 33... Bf5+ {[%clk 0:00:59.8]} 34. Kf4 {[%clk 0:00:01.5]}
34... Bxg6+ {[%clk 0:00:59.3]} 0-1

[Event "Early-Titled-Tuesday-Blitz-April-02-2024"]
[Site "Chess.com"]
[Date "2024.04.02"]
[Round "2"]
[White "sonicdravise"]
[Black "Alexander_Donchenko"]
[Result "0-1"]
[WhiteElo "2605"]
[BlackElo "2888"]
[TimeControl "180+1"]
[EndTime "8:17:11 PDT"]
[Termination "Alexander_Donchenko won by resignation"]

1. d4 {[%clk 0:03:00.9]} 1... Nf6 {[%clk 0:02:59.9]} 2. c4 {[%clk 0:03:01.6]}
2... g6 {[%clk 0:03:00.4]} 3. Nc3 {[%clk 0:03:01.5]} 3... d5 {[%clk 0:03:00.4]}
4. Nf3 {[%clk 0:02:58.1]} 4... Bg7 {[%clk 0:03:00.7]} 5. h4 {[%clk 0:02:58.9]}
5... c6 {[%clk 0:02:58.4]} 6. cxd5 {[%clk 0:02:58.6]} 6... cxd5 {[%clk
0:02:58.5]} 7. Bf4 {[%clk 0:02:59]} 7... Nc6 {[%clk 0:02:56.8]} 8. e3 {[%clk
0:02:59.2]} 8... O-O {[%clk 0:02:56.6]} 9. Qb3 {[%clk 0:02:58.9]} 9... Na5
{[%clk 0:02:55.7]} 10. Qa3 {[%clk 0:02:56.1]} 10... Bf5 {[%clk 0:02:52.1]} 11.
Ne5 {[%clk 0:02:44.8]} 11... Rc8 {[%clk 0:02:49.3]} 12. Be2 {[%clk 0:02:43]}
12... a6 {[%clk 0:02:48.5]} 13. Rc1 {[%clk 0:02:32.5]} 13... b5 {[%clk
0:02:04.5]} 14. b3 {[%clk 0:02:12.3]} 14... Qb6 {[%clk 0:01:54.9]} 15. Qb2
{[%clk 0:01:52.7]} 15... Nc6 {[%clk 0:01:34.1]} 16. O-O {[%clk 0:01:49.5]} 16...
e6 {[%clk 0:01:28]} 17. Nxc6 {[%clk 0:01:41.1]} 17... Rxc6 {[%clk 0:01:27.8]}
18. Be5 {[%clk 0:01:41.2]} 18... h5 {[%clk 0:01:24.4]} 19. Nb1 {[%clk
0:01:37.1]} 19... Rfc8 {[%clk 0:01:22.7]} 20. Rxc6 {[%clk 0:01:28.8]} 20... Qxc6
{[%clk 0:01:23.6]} 21. Bf3 {[%clk 0:01:00.7]} 21... Qc2 {[%clk 0:01:10.3]} 22.
Qa3 {[%clk 0:00:58.5]} 22... Ng4 {[%clk 0:01:05.3]} 23. Bxg7 {[%clk 0:00:54.8]}
23... Kxg7 {[%clk 0:01:05.7]} 24. Bxg4 {[%clk 0:00:49.9]} 24... hxg4 {[%clk
0:01:05.4]} 25. Qd6 {[%clk 0:00:47.9]} 25... Qxa2 {[%clk 0:01:02]} 26. Qe5+
{[%clk 0:00:39.7]} 26... Kg8 {[%clk 0:01:01.8]} 27. h5 {[%clk 0:00:33.3]} 27...
gxh5 {[%clk 0:00:59.9]} 28. e4 {[%clk 0:00:25.7]} 28... Bxe4 {[%clk 0:00:52.3]}
29. Qxh5 {[%clk 0:00:25.7]} 29... Bg6 {[%clk 0:00:53]} 30. Qxg4 {[%clk 0:00:25]}
30... Qxb3 {[%clk 0:00:49.5]} 31. Nd2 {[%clk 0:00:23.7]} 31... Qd3 {[%clk
0:00:49]} 32. Nf3 {[%clk 0:00:23.5]} 32... b4 {[%clk 0:00:40.2]} 33. Re1 {[%clk
0:00:17.7]} 33... b3 {[%clk 0:00:38.9]} 34. Ne5 {[%clk 0:00:12.7]} 34... Qf5
{[%clk 0:00:38.9]} 35. Qe2 {[%clk 0:00:13.3]} 35... Rc2 {[%clk 0:00:37.9]} 36.
Qxa6 {[%clk 0:00:13.4]} 36... Qxf2+ {[%clk 0:00:37]} 0-1

[Event "Early-Titled-Tuesday-Blitz-April-02-2024"]
[Site "Chess.com"]
[Date "2024.04.02"]
[Round "2"]
[White "MarkusRagger"]
[Black "Casper"]
[Result "1/2-1/2"]
[WhiteElo "2710"]
[BlackElo "2506"]
[TimeControl "180+1"]
[EndTime "8:17:12 PDT"]
[Termination "Game drawn by repetition"]

1. e4 {[%clk 0:03:00.9]} 1... c6 {[%clk 0:03:00.1]} 2. Nf3 {[%clk 0:03:00.3]}
2... d5 {[%clk 0:03:01]} 3. Nc3 {[%clk 0:03:00.2]} 3... dxe4 {[%clk 0:03:01.2]}
4. Nxe4 {[%clk 0:03:01.1]} 4... Bg4 {[%clk 0:03:01.1]} 5. h3 {[%clk 0:02:57.2]}
5... Bxf3 {[%clk 0:02:59]} 6. Qxf3 {[%clk 0:02:58.1]} 6... Nf6 {[%clk
0:02:59.6]} 7. Nxf6+ {[%clk 0:02:49.5]} 7... exf6 {[%clk 0:03:00.5]} 8. c3
{[%clk 0:02:46.8]} 8... Bd6 {[%clk 0:02:58.2]} 9. d4 {[%clk 0:02:46.3]} 9... O-O
{[%clk 0:02:58.3]} 10. Bd3 {[%clk 0:02:45.9]} 10... Re8+ {[%clk 0:02:58.7]} 11.
Be3 {[%clk 0:02:45.7]} 11... Nd7 {[%clk 0:02:58.9]} 12. O-O {[%clk 0:02:38.5]}
12... Nf8 {[%clk 0:02:58.3]} 13. Rae1 {[%clk 0:02:34.8]} 13... Bc7 {[%clk
0:02:58.6]} 14. Bd2 {[%clk 0:02:28.9]} 14... Qd6 {[%clk 0:02:57.1]} 15. g3
{[%clk 0:02:29.1]} 15... Ng6 {[%clk 0:02:57.8]} 16. Bxg6 {[%clk 0:02:21.7]}
16... hxg6 {[%clk 0:02:57.7]} 17. Bf4 {[%clk 0:02:22.3]} 17... Qd7 {[%clk
0:02:56.6]} 18. Bxc7 {[%clk 0:02:22.4]} 18... Qxc7 {[%clk 0:02:57.5]} 19. h4
{[%clk 0:02:22.4]} 19... Qa5 {[%clk 0:02:56.1]} 20. a3 {[%clk 0:02:13.9]} 20...
Kf8 {[%clk 0:02:53.9]} 21. Qd1 {[%clk 0:02:10.1]} 21... Qb5 {[%clk 0:02:51.5]}
22. Qd2 {[%clk 0:02:08.4]} 22... Rxe1 {[%clk 0:02:48.4]} 23. Rxe1 {[%clk
0:02:08.2]} 23... Re8 {[%clk 0:02:49.3]} 24. Rxe8+ {[%clk 0:02:07.7]} 24... Kxe8
{[%clk 0:02:50.2]} 25. f3 {[%clk 0:02:05.1]} 25... Kd7 {[%clk 0:02:48.8]} 26.
Kf2 {[%clk 0:02:04.9]} 26... Qf5 {[%clk 0:02:48.4]} 27. g4 {[%clk 0:02:01.1]}
27... Qe6 {[%clk 0:02:47.4]} 28. Qd1 {[%clk 0:01:55.9]} 28... Qd6 {[%clk
0:02:46.7]} 29. Kg2 {[%clk 0:01:56]} 29... Qe6 {[%clk 0:02:46.8]} 30. Qd2 {[%clk
0:01:44.9]} 30... f5 {[%clk 0:02:34.6]} 31. g5 {[%clk 0:01:43.4]} 31... Qd6
{[%clk 0:02:34.1]} 32. c4 {[%clk 0:01:39.8]} 32... a6 {[%clk 0:02:18]} 33. a4
{[%clk 0:01:32.9]} 33... Qe6 {[%clk 0:02:04.1]} 34. b3 {[%clk 0:01:30.1]} 34...
f4 {[%clk 0:01:46.8]} 35. Kf2 {[%clk 0:01:17.2]} 35... Qf5 {[%clk 0:01:38]} 36.
d5 {[%clk 0:01:00.2]} 36... cxd5 {[%clk 0:01:36.6]} 37. cxd5 {[%clk 0:01:01.1]}
37... b6 {[%clk 0:01:10.7]} 38. b4 {[%clk 0:00:59.7]} 38... Kd6 {[%clk
0:01:08.8]} 39. a5 {[%clk 0:01:00]} 39... bxa5 {[%clk 0:00:54.1]} 40. bxa5
{[%clk 0:01:00.9]} 40... Qxd5 {[%clk 0:00:52.6]} 41. Qxf4+ {[%clk 0:01:00.7]}
41... Kc6 {[%clk 0:00:47.3]} 42. Kg2 {[%clk 0:00:52.3]} 42... Qxa5 {[%clk
0:00:35.4]} 43. Qxf7 {[%clk 0:00:51.6]} 43... Qd2+ {[%clk 0:00:35.5]} 44. Kg3
{[%clk 0:00:43.1]} 44... Qd6+ {[%clk 0:00:31]} 45. Kg2 {[%clk 0:00:40.4]} 45...
Qd2+ {[%clk 0:00:31]} 46. Kg3 {[%clk 0:00:37.4]} 46... Qd6+ {[%clk 0:00:31.4]}
47. Kg2 {[%clk 0:00:37.7]} 47... Qd2+ {[%clk 0:00:32]} 1/2-1/2

[Event "Early-Titled-Tuesday-Blitz-April-02-2024"]
[Site "Chess.com"]
[Date "2024.04.02"]
[Round "2"]
[White "Iball95"]
[Black "Chessexplained"]
[Result "1-0"]
[WhiteElo "2936"]
[BlackElo "2539"]
[TimeControl "180+1"]
[EndTime "8:17:12 PDT"]
[Termination "Iball95 won by resignation"]

1. e4 {[%clk 0:02:59.9]} 1... c5 {[%clk 0:02:59.6]} 2. Nf3 {[%clk 0:03:00.6]}
2... a6 {[%clk 0:03:00.1]} 3. Nc3 {[%clk 0:03:01]} 3... b5 {[%clk 0:02:58.7]} 4.
d4 {[%clk 0:03:01.3]} 4... cxd4 {[%clk 0:02:59.6]} 5. Nxd4 {[%clk 0:03:02.2]}
5... e6 {[%clk 0:02:59.9]} 6. Bd3 {[%clk 0:03:02.6]} 6... Bb7 {[%clk 0:02:56.4]}
7. O-O {[%clk 0:03:01.5]} 7... Nc6 {[%clk 0:02:56.4]} 8. Nxc6 {[%clk 0:03:01]}
8... Bxc6 {[%clk 0:02:57.3]} 9. Re1 {[%clk 0:03:01.3]} 9... Qb8 {[%clk
0:02:53.5]} 10. a4 {[%clk 0:03:01.4]} 10... b4 {[%clk 0:02:49.6]} 11. Nd5 {[%clk
0:03:01.8]} 11... Bd6 {[%clk 0:02:50.2]} 12. Qh5 {[%clk 0:02:59.1]} 12... Ne7
{[%clk 0:02:43.2]} 13. Nxe7 {[%clk 0:02:47.3]} 13... Bxe7 {[%clk 0:02:39.3]} 14.
e5 {[%clk 0:02:38.8]} 14... Qb7 {[%clk 0:01:55.9]} 15. Qg4 {[%clk 0:02:18.6]}
15... Kf8 {[%clk 0:01:34.9]} 16. h4 {[%clk 0:02:09.6]} 16... h6 {[%clk
0:01:24.2]} 17. Bd2 {[%clk 0:01:39.9]} 17... Rc8 {[%clk 0:01:19.2]} 18. Re3
{[%clk 0:01:29.7]} 18... g5 {[%clk 0:01:00.6]} 19. h5 {[%clk 0:01:27.4]} 19...
a5 {[%clk 0:00:50.1]} 20. c3 {[%clk 0:01:23.8]} 20... Bd5 {[%clk 0:00:40.9]} 21.
Rae1 {[%clk 0:01:13.9]} 21... bxc3 {[%clk 0:00:39.6]} 22. Bxc3 {[%clk
0:01:14.8]} 22... Bb4 {[%clk 0:00:39.2]} 23. Bxb4+ {[%clk 0:00:35.3]} 23... Qxb4
{[%clk 0:00:40.1]} 24. Qxb4+ {[%clk 0:00:35.2]} 24... axb4 {[%clk 0:00:40.3]}
25. a5 {[%clk 0:00:35.9]} 25... Ke7 {[%clk 0:00:40]} 26. Ra1 {[%clk 0:00:36]}
26... Rc5 {[%clk 0:00:35.4]} 27. a6 {[%clk 0:00:36]} 27... Ra8 {[%clk
0:00:34.9]} 28. f3 {[%clk 0:00:34.5]} 28... Bc6 {[%clk 0:00:34]} 29. Kf2 {[%clk
0:00:32.6]} 29... Bb5 {[%clk 0:00:33.8]} 30. Ra5 {[%clk 0:00:26.1]} 30... Bxd3
{[%clk 0:00:26]} 31. Rxc5 {[%clk 0:00:26.4]} 31... Bxa6 {[%clk 0:00:26.6]} 32.
Ra5 {[%clk 0:00:27]} 1-0

[Event "Early-Titled-Tuesday-Blitz-April-02-2024"]
[Site "Chess.com"]
[Date "2024.04.02"]
[Round "2"]
[White "Ralf61"]
[Black "dealshark"]
[Result "1-0"]
[WhiteElo "2540"]
[BlackElo "2315"]
[TimeControl "180+1"]
[EndTime "8:17:13 PDT"]
[Termination "Ralf61 won by checkmate"]

1. d4 {[%clk 0:02:57.7]} 1... Nf6 {[%clk 0:02:59.6]} 2. c4 {[%clk 0:02:57.7]}
2... e6 {[%clk 0:02:59.8]} 3. Nc3 {[%clk 0:02:57.5]} 3... Bb4 {[%clk 0:03:00.1]}
4. e3 {[%clk 0:02:57.4]} 4... O-O {[%clk 0:02:59.9]} 5. Bd3 {[%clk 0:02:55.5]}
5... c5 {[%clk 0:03:00.1]} 6. Nf3 {[%clk 0:02:52.5]} 6... Nc6 {[%clk 0:02:59.4]}
7. O-O {[%clk 0:02:46.9]} 7... Bxc3 {[%clk 0:02:59.9]} 8. bxc3 {[%clk
0:02:46.1]} 8... d6 {[%clk 0:03:00.5]} 9. e4 {[%clk 0:02:40.6]} 9... e5 {[%clk
0:02:57.9]} 10. h3 {[%clk 0:02:40.4]} 10... Qc7 {[%clk 0:02:48.4]} 11. Be3
{[%clk 0:02:33]} 11... b6 {[%clk 0:02:38.5]} 12. d5 {[%clk 0:02:22.2]} 12... Ne7
{[%clk 0:02:37.9]} 13. Nd2 {[%clk 0:02:06.2]} 13... Ne8 {[%clk 0:02:32.5]} 14.
Kh2 {[%clk 0:01:57.2]} 14... f5 {[%clk 0:02:32.2]} 15. exf5 {[%clk 0:01:55.1]}
15... Bxf5 {[%clk 0:02:31.2]} 16. Ne4 {[%clk 0:01:52.4]} 16... Nf6 {[%clk
0:02:21.4]} 17. Qc2 {[%clk 0:01:45]} 17... Nxe4 {[%clk 0:02:09.3]} 18. Bxe4
{[%clk 0:01:43.9]} 18... Qd7 {[%clk 0:02:06.1]} 19. a4 {[%clk 0:01:35.7]} 19...
Ng6 {[%clk 0:01:59.5]} 20. a5 {[%clk 0:01:31.5]} 20... Bxe4 {[%clk 0:01:48.2]}
21. Qxe4 {[%clk 0:01:30.7]} 21... Nf4 {[%clk 0:01:48]} 22. axb6 {[%clk
0:01:25.6]} 22... axb6 {[%clk 0:01:47.2]} 23. Rxa8 {[%clk 0:01:24.6]} 23... Rxa8
{[%clk 0:01:47.2]} 24. Bxf4 {[%clk 0:01:24.8]} 24... exf4 {[%clk 0:01:47.6]} 25.
Qxf4 {[%clk 0:01:25]} 25... Rf8 {[%clk 0:01:46.2]} 26. Qe3 {[%clk 0:01:15.8]}
26... Kh8 {[%clk 0:01:44.8]} 27. Re1 {[%clk 0:01:09.8]} 27... Qf5 {[%clk
0:01:39.1]} 28. f3 {[%clk 0:01:06.8]} 28... h6 {[%clk 0:01:38.1]} 29. Qe6 {[%clk
0:00:58]} 29... Qf4+ {[%clk 0:01:38]} 30. Kh1 {[%clk 0:00:58.1]} 30... Ra8
{[%clk 0:01:34.5]} 31. Qg4 {[%clk 0:00:51.9]} 31... Qd2 {[%clk 0:01:18.7]} 32.
Re7 {[%clk 0:00:49.5]} 32... Qxc3 {[%clk 0:01:15.5]} 33. Kh2 {[%clk 0:00:43.1]}
33... Qf6 {[%clk 0:01:12.2]} 34. Re6 {[%clk 0:00:39.2]} 34... Qd4 {[%clk
0:01:00.3]} 35. Rxd6 {[%clk 0:00:31.8]} 35... Ra1 {[%clk 0:00:34]} 36. Rd8+
{[%clk 0:00:28]} 36... Kh7 {[%clk 0:00:33.3]} 37. Qf5+ {[%clk 0:00:24.6]} 37...
g6 {[%clk 0:00:29.2]} 38. Rd7+ {[%clk 0:00:23.7]} 38... Kg8 {[%clk 0:00:27.5]}
39. Qf7+ {[%clk 0:00:22.7]} 39... Kh8 {[%clk 0:00:27.2]} 40. Qh7# {[%clk
0:00:22.5]} 1-0